[Event "10th Cesme Open-B 2024"]
[Site "Cesme"]
[Date "2024.06.28"]
[Round "7"]
[White "Korkmaz, Necmettin"]
[Black "Turgut, Hakan"]
[Result "1-0"]
[ECO "C45"]
[WhiteElo "1999"]
[BlackElo "1979"]
[Annotator "RC"]
[PlyCount "71"]
[EventDate "2024.06.23"]
[EventType "swiss"]
[EventCountry "TUR"]
[SourceTitle "playchess.com"]
[Source "ChessBase"]
[SourceQuality "1"]
[TimeControl "5400+30"]

1. e4 {[%emt 0:04:00]} e5 {[%emt 0:01:00]} 2. Nf3 {[%emt 0:00:30]} Nc6 {[%emt 0:00:30]} 3. d4 {[%emt 0:00:30]} exd4 {[%emt 0:00:30]} 4. Nxd4 {[%emt 0:00:30]} Nf6 {[%emt 0:00:00]} 5. Nxc6 {[%emt 0:00:30]} bxc6 {[%emt 0:00:00]} 6. e5 {[%emt 0:00:00]} Qe7 {[%emt 0:00:00]} 7. Qe2 {[%emt 0:01:00]} Nd5 {[%emt 0:00:00]} 8. c4 {[%emt 0:04:30]} Ba6 {[%emt 0:04:30]} 9. b3 {[%emt 0:01:30]} Qh4 {[%emt 0:07:30]} 10. a3 {[%emt 0:01:30]} Rb8 {[%emt 0:09:30]} 11. g3 {[%emt 0:02:30]} Qe7 {[%emt 0:06:30]} 12. Nd2 {[%emt 0:02:30]} g6 {[%emt 0:05:30]} 13. Bg2 {[%emt 0:28:30]} Bg7 {[%emt 0:01:30]} 14. Bb2 {[%emt 0:01:30]} O-O {[%emt 0:07:30]} 15. O-O {[%emt 0:00:30]} Nb6 {[%emt 0:09:30]} 16. a4 {[%emt 0:11:30]} d5 {[%emt 0:03:30]} 17. f4 {[%emt 0:02:30]} Nxc4 {[%emt 0:02:30]} 18. Ba3 {[%emt 0:14:30]} Nxa3 {[%emt 0:01:30]} 19. Qxa6 {[%emt 0:00:30]} Nc2 {[%emt 0:03:30]} 20. Rac1 {[%emt 0:01:45]} Nd4 {[%emt 0:01:30]} 21. Kh1 {[%emt 0:04:38]} f6 {[%emt 0:09:30]} 22. exf6 {[%emt 0:03:11]} Bxf6 {[%emt 0:01:30]} 23. Nf3 {[%emt 0:01:19]} Rb6 {[%emt 0:02:30]} 24. Qxa7 {[%emt 0:00:36]} Nxf3 {[%emt 0:05:18]} 25. Bxf3 {[%emt 0:02:17]} Qd6 {[%emt 0:02:36]} 26. Rfd1 {[%emt 0:01:05]} Kg7 {[%emt 0:01:26]} 27. Rxd5 {[%emt 0:04:47]} cxd5 {[%emt 0:02:46]} 28. Rxc7+ {[%emt 0:00:08]} Be7 {[%emt 0:04:19]} 29. Rxe7+ {[%emt 0:00:30]} Kf6 {[%emt 0:00:00]} 30. Rxh7 {[%emt 0:00:00]} d4 {[%emt 0:04:43]} 31. Qg7+ {[%emt 0:02:48]} Kf5 {[%emt 0:00:04]} 32. Qh6 {[%emt 0:01:42]} Qd8 {[%emt 0:01:36]} 33. g4+ {[%emt 0:01:09]} Ke6 {[%emt 0:00:43]} 34. Qxg6+ {[%emt 0:00:11]} Rf6 {[%emt 0:00:13]} 35. Qe4+ {[%emt 0:00:30]} Kd6 {[%emt 0:00:30]} 36. Qd5# {[%emt 0:00:00]} 1-0

[Event "10th Cesme Open-B 2024"]
[Site "Cesme"]
[Date "2024.06.28"]
[Round "7"]
[White "Atis, Hasan"]
[Black "Uzdemir, Ali Poyraz"]
[Result "1-0"]
[ECO "B67"]
[WhiteElo "1988"]
[BlackElo "1936"]
[Annotator "RC"]
[PlyCount "93"]
[EventDate "2024.06.23"]
[EventType "swiss"]
[EventCountry "TUR"]
[SourceTitle "playchess.com"]
[Source "ChessBase"]
[SourceQuality "1"]
[TimeControl "5400+30"]

1. e4 {[%emt 0:07:00]} c5 {[%emt 0:01:00]} 2. Nf3 {[%emt 0:00:30]} d6 {[%emt 0:00:30]} 3. d4 {[%emt 0:00:30]} cxd4 {[%emt 0:00:30]} 4. Nxd4 {[%emt 0:00:30]} Nf6 {[%emt 0:00:30]} 5. Nc3 {[%emt 0:00:30]} Nc6 {[%emt 0:00:30]} 6. Bg5 {[%emt 0:00:30]} e6 {[%emt 0:00:30]} 7. Qd2 {[%emt 0:00:30]} a6 {[%emt 0:00:30]} 8. O-O-O {[%emt 0:00:30]} Bd7 {[%emt 0:00:30]} 9. Kb1 {[%emt 0:00:30]} h6 {[%emt 0:00:30]} 10. Be3 {[%emt 0:00:00]} Ng4 {[%emt 0:02:30]} 11. Nxc6 {[%emt 0:00:00]} bxc6 {[%emt 0:04:30]} 12. Bf4 {[%emt 0:00:00]} e5 {[%emt 0:03:30]} 13. Bg3 {[%emt 0:00:00]} Be6 {[%emt 0:04:30]} 14. Be2 {[%emt 0:06:30]} Qa5 {[%emt 0:02:30]} 15. h3 {[%emt 0:04:30]} Nf6 {[%emt 0:00:30]} 16. b3 {[%emt 0:00:30]} Rb8 {[%emt 0:06:30]} 17. f4 {[%emt 0:08:30]} exf4 {[%emt 0:18:30]} 18. Bxf4 {[%emt 0:00:30]} Nd7 {[%emt 0:00:30]} 19. Qe1 {[%emt 0:38:30]} Ne5 {[%emt 0:06:30]} 20. g4 {[%emt 0:04:30]} g5 {[%emt 0:03:30]} 21. Bd2 {[%emt 0:00:30]} Qa3 {[%emt 0:08:30]} 22. Bc1 {[%emt 0:01:30]} Qa5 {[%emt 0:01:30]} 23. Bb2 {[%emt 0:01:30]} Qc7 {[%emt 0:08:30]} 24. Na4 {[%emt 0:01:30]} Bg7 {[%emt 0:00:30]} 25. h4 {[%emt 0:00:30]} gxh4 {[%emt 0:03:30]} 26. Rxh4 {[%emt 0:00:30]} Qe7 {[%emt 0:02:30]} 27. Rh5 {[%emt 0:00:30]} Rg8 {[%emt 0:01:16]} 28. Qd2 {[%emt 0:04:00]} Nxg4 {[%emt 0:02:30]} 29. Qxd6 {[%emt 0:00:31]} Qxd6 {[%emt 0:00:37]} 30. Rxd6 {[%emt 0:00:02]} Nf6 {[%emt 0:00:35]} 31. Rh4 {[%emt 0:01:38]} Rb4 {[%emt 0:02:55]} 32. Bd3 {[%emt 0:05:07]} Bh8 {[%emt 0:12:05]} 33. Bc3 {[%emt 0:00:26]} Rg1+ {[%emt 0:01:09]} 34. Kb2 {[%emt 0:00:02]} Ke7 {[%emt 0:00:41]} 35. Rxe6+ {[%emt 0:02:56]} Kxe6 {[%emt 0:00:30]} 36. Bxb4 {[%emt 0:00:15]} Nd5+ {[%emt 0:00:00]} 37. Ka3 {[%emt 0:00:01]} Rb1 {[%emt 0:00:54]} 38. exd5+ {[%emt 0:00:35]} cxd5 {[%emt 0:00:30]} 39. Rxh6+ {[%emt 0:00:30]} Bf6 {[%emt 0:00:00]} 40. Nc5+ {[%emt 0:00:00]} Ke5 {[%emt 0:00:04]} 41. Nd7+ {[%emt 0:00:30]} Kd4 {[%emt 0:00:00]} 42. Rxf6 {[%emt 0:00:00]} a5 {[%emt 0:00:00]} 43. Bc5+ {[%emt 0:00:41]} Kc3 {[%emt 0:00:16]} 44. Rf4 {[%emt 0:00:30]} f5 {[%emt 0:00:00]} 45. Bd4+ {[%emt 0:00:00]} Kd2 {[%emt 0:00:12]} 46. Rf2+ {[%emt 0:00:16]} Kd1 {[%emt 0:00:00]} 47. Bc3 {[%emt 0:00:00]} 1-0

[Event "10th Cesme Open-B 2024"]
[Site "Cesme"]
[Date "2024.06.28"]
[Round "7"]
[White "Dogan, Umut Anil"]
[Black "Can, Isik"]
[Result "1-0"]
[ECO "E05"]
[WhiteElo "1982"]
[BlackElo "2509"]
[Annotator "TA"]
[PlyCount "147"]
[EventDate "2024.06.23"]
[EventType "swiss"]
[EventCountry "TUR"]
[SourceTitle "playchess.com"]
[Source "ChessBase"]
[SourceQuality "1"]
[TimeControl "5400+30"]

{[%evp 21,147,0,0,-20,-28,-26,-25,-29,-19,-15,14,37,18,-2,5,6,25,0,66,84,77,0,80,87,137,120,107,36,56,70,42,33,131,152,139,128,155,154,162,162,162,158,202,145,144,135,189,189,204,213,218,218,218,217,237,214,215,214,222,224,218,211,218,218,237,240,236,236,236,229,276,276,360,348,349,337,345,336,338,312,361,355,640,635,616,571,730,686,983,962,29974,29975,29972,29976,29976,29977,29977,29978,29978,29969,29955,10564,29975,29976,29978,29977,29979,29980,29980,29981,29981,29982,29982,29983,29983,29984,29986,29987,29987,29986,29988,29989,29994,29995,29997,29985,29989,29990]} 1. Nf3 {[%emt 0:01:00]} Nf6 {[%emt 0:01:00]} 2. c4 {[%emt 0:00:30]} e6 {[%emt 0:00:30]} 3. g3 {[%emt 0:00:30]} d5 {[%emt 0:00:00]} 4. Bg2 {[%emt 0:00:30]} Be7 {[%emt 0:00:00]} 5. O-O {[%emt 0:00:30]} O-O {[%emt 0:00:30]} 6. d4 {[%emt 0:00:00]} dxc4 {[%emt 0:00:30]} 7. Qc2 {[%emt 0:01:00]} a6 {[%emt 0:00:30]} 8. Qxc4 {[%emt 0:01:30]} b5 {[%emt 0:00:30]} 9. Qc2 {[%emt 0:00:30]} Bb7 {[%emt 0:00:30]} 10. Bd2 {[%emt 0:01:30]} Be4 {[%emt 0:02:30]} 11. Qc1 {[%emt 0:00:30]} Nc6 {[%emt 0:01:30]} 12. Nc3 {[%emt 0:01:30]} Bxf3 {[%emt 0:00:30]} 13. Bxf3 {[%emt 0:00:30]} Nxd4 {[%emt 0:00:30]} 14. Bxa8 {[%emt 0:00:30] Black has an edge.} Qxa8 {[%emt 0:00:00]} 15. Be3 {[%emt 0:03:30]} c5 {[%emt 0:01:00]} 16. Bxd4 $1 {[%emt 0:08:30]} cxd4 {[%emt 0:00:00]} 17. Nd1 {[%emt 0:00:00] White is weak on the dark squares} Rc8 {[%emt 0:50:00]} 18. Qd2 {[%emt 0:05:00]} e5 {[%emt 0:02:30]} 19. Rc1 {[%emt 0:00:30]} Ne4 {[%emt 0:03:30]} (19... Rc4 $11 20. b3 (20. Rxc4 bxc4 21. Qa5 Bd6 $11) 20... Bb4) 20. Rxc8+ $14 {[%emt 0:00:30]} Qxc8 {[%emt 0:00:30]} 21. Qa5 {[%emt 0:01:30]} (21. Qd3 $16 Nc5 22. Qc2) 21... Nf6 {[%emt 0:07:30]} (21... Ng5 $11 {keeps the balance.}) 22. a4 $16 {[%emt 0:02:30]} Qc6 {[%emt 0:08:44]} (22... Bd8 $142 23. Qb4 Qc6) 23. axb5 {[%emt 0:02:30]} axb5 {[%emt 0:00:30]} 24. Qa7 {[%emt 0:02:30]} ({White should play} 24. f3 $1 $16) 24... Bf8 {[%emt 0:00:35]} 25. Qb8 {[%emt 0:00:00]} e4 {[%emt 0:02:51]} 26. Qe5 {[%emt 0:05:00]} Qd5 {[%emt 0:00:05]} (26... Qd7 $14) 27. Qxd5 {[%emt 0:00:30]} Nxd5 {[%emt 0:00:03][%mdl 4096] Endgame. KRN-KBN} 28. e3 {[%emt 0:02:30]} Bc5 {[%emt 0:03:52]} 29. exd4 {[%emt 0:01:30]} Bxd4 {[%emt 0:00:03]} 30. Re1 {[%emt 0:00:30]} f5 {[%emt 0:00:30]} 31. Re2 {[%emt 0:00:30] Strongly threatening Rd2.} Nb4 {[%emt 0:02:43]} 32. Kf1 {[%emt 0:03:30]} Kf7 {[%emt 0:01:12] [#]} 33. Nc3 $1 {[%emt 0:01:30]} Nd3 {[%emt 0:00:38]} (33... Bxc3 $16 34. bxc3 Nd5) 34. Nxb5 $18 {[%emt 0:00:30]} Bxb2 {[%emt 0:01:47] [#]} 35. f3 $1 {[%emt 0:00:30][%mdl 512]} Be5 {[%emt 0:01:37]} (35... Kf6 36. fxe4) 36. fxe4 {[%emt 0:00:30]} fxe4 {[%emt 0:00:22]} 37. Rxe4 {[%emt 0:00:30]} Kf6 {[%emt 0:00:49]} 38. Re3 {[%emt 0:01:30]} Nc5 {[%emt 0:01:08]} 39. Na3 {[%emt 0:00:30]} g6 {[%emt 0:01:43]} 40. Nc4 {[%emt 0:00:30]} Bd4 {[%emt 0:00:23]} 41. Re2 {[%emt 0:00:00]} Ne6 {[%emt 0:00:46]} 42. Kg2 {[%emt 0:00:00]} Bc5 {[%emt 0:00:37]} 43. Ne5 {[%emt 0:01:30] And now Nd7+ would win.} Bd4 {[%emt 0:01:14]} 44. Nf3 {[%emt 0:00:30]} Bc5 {[%emt 0:00:43]} 45. Ra2 {[%emt 0:00:30]} h6 {[%emt 0:04:11]} 46. Ra6 {[%emt 0:00:30]} g5 {[%emt 0:00:56]} 47. Nd2 {[%emt 0:01:30]} Kf5 {[%emt 0:00:58] Against Ne4} 48. Nb3 {[%emt 0:00:30]} Bf8 {[%emt 0:00:31] [#]} 49. g4+ $1 {[%emt 0:01:30]} Ke5 {[%emt 0:00:26]} 50. Kf3 {[%emt 0:00:30]} Nf4 {[%emt 0:00:46]} 51. Nd2 {[%emt 0:00:30]} Bg7 $2 {[%emt 0:00:38]} (51... Kd4 52. Rf6 Bg7) 52. Nc4+ {[%emt 0:00:30]} Kd4 {[%emt 0:00:30]} 53. Ne3 {[%emt 0:00:00] Black must now prevent Nf5+.} Bf8 {[%emt 0:00:36]} 54. Nf5+ {[%emt 0:01:00]} Ke5 {[%emt 0:00:13]} 55. Nxh6 {[%emt 0:00:00]} Ne6 {[%emt 0:00:25]} 56. Nf7+ {[%emt 0:00:00]} Kd5 {[%emt 0:00:29] [#]} 57. Rxe6 $1 {[%emt 0:02:30]} Kxe6 {[%emt 0:00:35]} 58. Nxg5+ {[%emt 0:00:30] KB-KN} Ke5 {[%emt 0:00:00]} 59. Ne4 {[%emt 0:00:30]} Be7 {[%emt 0:00:18]} 60. Ng3 {[%emt 0:00:30]} Kf6 {[%emt 0:01:13]} 61. Nf5 {[%emt 0:00:30]} (61. h4 $142 Kg6 62. Nf5 Bf8 63. Kf4 Kf7 64. g5 Ke6 65. h5 Ba3 66. Nd4+ Kd5 67. Ne2) 61... Ba3 {[%emt 0:00:30]} 62. h4 {[%emt 0:00:30] White mates.} Bc1 {[%emt 0:00:02]} 63. Ne3 {[%emt 0:00:30]} Kg6 {[%emt 0:00:14]} 64. Nd5 {[%emt 0:01:30]} Kh6 {[%emt 0:00:41]} 65. Nf4 {[%emt 0:00:30]} Bb2 {[%emt 0:00:09]} 66. g5+ {[%emt 0:00:30]} Kg7 {[%emt 0:00:00]} 67. Kg4 {[%emt 0:00:30]} Kf7 {[%emt 0:00:08]} 68. h5 {[%emt 0:00:30][%cal Bh4h5,Bh5h6,Bh6h7][%mdl 32]} Ba1 {[%emt 0:00:30]} 69. Kf5 {[%emt 0:00:30]} Bb2 {[%emt 0:00:00]} 70. Ne6 {[%emt 0:00:00]} Ba1 {[%emt 0:00:00]} 71. h6 {[%emt 0:00:00]} Kg8 {[%emt 0:00:00]} 72. Kg6 {[%emt 0:00:30]} Bc3 {[%emt 0:00:18]} 73. Nd8 {[%emt 0:00:30]} Bg7 {[%emt 0:00:37]} 74. h7+ {[%emt 0:00:00] Weighted Error Value: White=0.09 (flawless) /Black=0.42.  Mistake:       	White=2     	Black=6      Inaccurate:     	---       	Black=3      OK:         	White=19    	Black=9      Best:        	White=7     	Black=1      Strong:       	White=1     	---        Brilliant:      	White=1     	---} 1-0

[Event "10th Cesme Open-B 2024"]
[Site "Cesme"]
[Date "2024.06.28"]
[Round "7"]
[White "Rzayev, Askar Aliakbar"]
[Black "Aydemir, Umut"]
[Result "1-0"]
[ECO "A09"]
[WhiteElo "1967"]
[BlackElo "1940"]
[Annotator "RC"]
[PlyCount "75"]
[EventDate "2024.06.23"]
[EventType "swiss"]
[EventCountry "TUR"]
[SourceTitle "playchess.com"]
[Source "ChessBase"]
[SourceQuality "1"]
[TimeControl "5400+30"]

1. Nf3 {[%emt 0:01:00]} d5 {[%emt 0:01:00]} 2. c4 {[%emt 0:00:30]} d4 {[%emt 0:00:30]} 3. e3 {[%emt 0:00:30]} Nc6 {[%emt 0:00:30]} 4. d3 {[%emt 0:04:30]} e5 {[%emt 0:03:30]} 5. a3 {[%emt 0:01:30]} a5 {[%emt 0:00:30]} 6. Be2 {[%emt 0:02:30]} Nf6 {[%emt 0:01:30]} 7. exd4 {[%emt 0:00:30]} exd4 {[%emt 0:01:30]} 8. Bg5 {[%emt 0:00:30]} Be7 {[%emt 0:00:30]} 9. Bxf6 {[%emt 0:01:30]} Bxf6 {[%emt 0:00:30]} 10. O-O {[%emt 0:00:30]} O-O {[%emt 0:00:30]} 11. Nbd2 {[%emt 0:00:00]} Re8 {[%emt 0:06:30]} 12. Ne4 {[%emt 0:00:00]} Be7 {[%emt 0:00:00]} 13. Re1 {[%emt 0:00:30]} f5 {[%emt 0:00:00]} 14. Ng3 {[%emt 0:00:30]} Bc5 {[%emt 0:04:30]} 15. Nd2 {[%emt 0:07:30]} g6 {[%emt 0:05:30]} 16. Bf3 {[%emt 0:00:30]} Ne5 {[%emt 0:01:30]} 17. Bd5+ {[%emt 0:03:30]} Kg7 {[%emt 0:04:30]} 18. Nf3 {[%emt 0:01:30]} c6 {[%emt 0:10:30]} 19. Nxe5 {[%emt 0:09:30]} cxd5 {[%emt 0:00:30]} 20. Qb3 {[%emt 0:06:30]} a4 {[%emt 0:07:30]} 21. Qc2 {[%emt 0:02:30]} Be6 {[%emt 0:03:30]} 22. cxd5 {[%emt 0:03:30]} Qxd5 {[%emt 0:00:30]} 23. Qd2 {[%emt 0:00:30]} Bd6 {[%emt 0:02:30]} 24. Nf3 {[%emt 0:11:30]} h6 {[%emt 0:03:30]} 25. h4 {[%emt 0:01:30]} Bd7 {[%emt 0:04:30]} 26. h5 {[%emt 0:01:30]} g5 {[%emt 0:00:30]} 27. Ne2 {[%emt 0:06:30]} Bc5 {[%emt 0:13:30]} 28. Nxg5 {[%emt 0:02:30]} Ra6 {[%emt 0:07:00]} 29. Nf4 {[%emt 0:02:30]} Qg8 {[%emt 0:00:27]} 30. Nf3 {[%emt 0:01:30]} Kh7 {[%emt 0:01:45]} 31. Rxe8 {[%emt 0:02:30]} Bxe8 {[%emt 0:00:13]} 32. Re1 {[%emt 0:00:30]} Rf6 {[%emt 0:02:06]} 33. Qe2 {[%emt 0:00:30]} Rf8 {[%emt 0:02:35]} 34. Ne6 {[%emt 0:00:30]} Bxh5 {[%emt 0:00:56]} 35. Nfg5+ {[%emt 0:05:30]} Kg6 {[%emt 0:01:02]} 36. Nf4+ {[%emt 0:00:00]} Kf6 {[%emt 0:00:21]} 37. Qxh5 {[%emt 0:00:00]} hxg5 {[%emt 0:01:18]} 38. Re6+ {[%emt 0:00:30]} 1-0

[Event "10th Cesme Open-B 2024"]
[Site "Cesme"]
[Date "2024.06.28"]
[Round "7"]
[White "Yigit, Ahmet Yasir"]
[Black "Asgharvand, Davood"]
[Result "1-0"]
[ECO "D13"]
[WhiteElo "1964"]
[BlackElo "1881"]
[Annotator "NA RC"]
[PlyCount "115"]
[EventDate "2024.06.23"]
[EventType "swiss"]
[EventCountry "TUR"]
[SourceTitle "playchess.com"]
[Source "ChessBase"]
[SourceQuality "1"]
[TimeControl "5400+30"]

1. c4 {[%emt 0:01:00]} Nf6 {[%emt 0:01:00]} 2. g3 {[%emt 0:00:30]} c6 {[%emt 0:00:30]} 3. Bg2 {[%emt 0:00:30]} d5 {[%emt 0:00:30]} 4. cxd5 {[%emt 0:00:30]} cxd5 {[%emt 0:00:30]} 5. Nf3 {[%emt 0:00:30]} Nc6 {[%emt 0:00:30]} 6. d4 {[%emt 0:00:00]} e6 {[%emt 0:00:00]} 7. O-O {[%emt 0:00:00]} Be7 {[%emt 0:00:00]} 8. Nc3 {[%emt 0:00:30]} O-O {[%emt 0:00:30]} 9. Bf4 {[%emt 0:01:30]} a6 {[%emt 0:00:30]} 10. Rc1 {[%emt 0:00:30]} Ne4 {[%emt 0:02:30]} 11. Ne5 {[%emt 0:06:30]} Nxe5 {[%emt 0:01:30]} 12. Bxe5 {[%emt 0:00:30]} Nxc3 {[%emt 0:00:30]} 13. Rxc3 {[%emt 0:00:30]} Bd7 {[%emt 0:00:30]} 14. e4 {[%emt 0:07:30]} Bc6 {[%emt 0:06:30]} 15. exd5 {[%emt 0:03:30]} Bxd5 {[%emt 0:00:30]} 16. Qg4 {[%emt 0:01:30]} f6 {[%emt 0:01:30]} 17. Bc7 {[%emt 0:01:30]} Qd7 {[%emt 0:00:30]} 18. Bxd5 {[%emt 0:05:30]} Qxd5 {[%emt 0:00:30]} 19. a3 {[%emt 0:00:30]} Rfe8 {[%emt 0:00:30]} 20. Re1 {[%emt 0:01:30]} Bf8 {[%emt 0:01:30]} 21. Bb6 {[%emt 0:01:30]} Qb5 {[%emt 0:02:30]} 22. Bc5 {[%emt 0:02:30]} Qd7 {[%emt 0:15:30]} 23. Bxf8 {[%emt 0:02:30]} Kxf8 {[%emt 0:00:00]} 24. d5 {[%emt 0:01:30]} Qxd5 {[%emt 0:16:00]} 25. Rc7 {[%emt 0:00:30]} Qg5 {[%emt 0:00:00]} 26. Qxg5 {[%emt 0:03:30]} fxg5 {[%emt 0:00:00]} 27. Rxb7 {[%emt 0:00:30]} Re7 {[%emt 0:01:30]} 28. Rb6 {[%emt 0:00:30]} Kf7 {[%emt 0:00:30]} 29. Re5 {[%emt 0:00:00]} h6 {[%emt 0:00:30]} 30. Ra5 {[%emt 0:00:00]} Rea7 {[%emt 0:00:00]} 31. Kg2 {[%emt 0:00:30]} Kf6 {[%emt 0:01:00]} 32. Kf3 {[%emt 0:00:30]} Kf7 {[%emt 0:00:00]} 33. Ke4 {[%emt 0:00:00]} Kf6 {[%emt 0:00:00]} 34. b4 {[%emt 0:01:00]} g6 {[%emt 0:01:30]} 35. Rc6 {[%emt 0:03:30]} g4 {[%emt 0:01:30]} 36. Kf4 {[%emt 0:02:30]} h5 {[%emt 0:00:30]} 37. Ke4 {[%emt 0:00:30]} g5 {[%emt 0:01:30]} 38. Rf5+ {[%emt 0:00:30]} Ke7 {[%emt 0:01:30]} 39. Rxg5 {[%emt 0:00:30]} a5 {[%emt 0:00:30]} 40. b5 {[%emt 0:00:30]} a4 {[%emt 0:00:30]} 41. Rxh5 {[%emt 0:00:30]} Ra5 {[%emt 0:00:30]} 42. Rh7+ {[%emt 0:00:30]} Kf6 {[%emt 0:01:30]} 43. Rh6+ {[%emt 0:00:30]} Kg7 {[%emt 0:00:30]} 44. Rhxe6 {[%emt 0:00:30]} Rxb5 {[%emt 0:00:00]} 45. Rc7+ {[%emt 0:00:30]} Kf8 {[%emt 0:01:00]} 46. Kf4 {[%emt 0:00:30]} Rb2 {[%emt 0:05:30]} 47. Rf6+ {[%emt 0:00:00]} Kg8 {[%emt 0:00:30]} 48. Kxg4 {[%emt 0:00:00]} Rb3 {[%emt 0:00:30]} 49. Rf3 {[%emt 0:00:30]} Rab8 {[%emt 0:00:30]} 50. Ra7 {[%emt 0:02:30]} Rxf3 {[%emt 0:00:30]} 51. Kxf3 {[%emt 0:00:30]} Rb3+ {[%emt 0:00:30]} 52. Kg4 {[%emt 0:00:30]} Rxa3 {[%emt 0:00:30]} 53. f4 {[%emt 0:00:00]} Kf8 {[%emt 0:00:00]} 54. h4 {[%emt 0:00:00]} Ra1 {[%emt 0:00:00]} 55. h5 {[%emt 0:00:00]} Kg8 {[%emt 0:00:30]} 56. Kg5 {[%emt 0:00:00]} a3 {[%emt 0:00:00]} 57. h6 {[%emt 0:00:30]} a2 {[%emt 0:00:00]} 58. h7+ {[%emt 0:00:30]} 1-0

[Event "10th Cesme Open-B 2024"]
[Site "Cesme"]
[Date "2024.06.28"]
[Round "7"]
[White "Tezcan, Alper"]
[Black "Akkaya, Atakan"]
[Result "0-1"]
[ECO "B47"]
[WhiteElo "1936"]
[BlackElo "1780"]
[Annotator "RC"]
[PlyCount "114"]
[EventDate "2024.06.23"]
[EventType "swiss"]
[EventCountry "TUR"]
[SourceTitle "playchess.com"]
[Source "ChessBase"]
[SourceQuality "1"]
[TimeControl "5400+30"]

1. e4 {[%emt 0:06:00]} c5 {[%emt 0:01:00]} 2. Nf3 {[%emt 0:00:30]} e6 {[%emt 0:00:30]} 3. d4 {[%emt 0:00:30]} cxd4 {[%emt 0:00:30]} 4. Nxd4 {[%emt 0:00:00]} Nc6 {[%emt 0:00:00]} 5. Nc3 {[%emt 0:00:00]} Qc7 {[%emt 0:00:00]} 6. Qd3 {[%emt 0:00:00]} a6 {[%emt 0:00:30]} 7. Nxc6 {[%emt 0:00:00]} dxc6 {[%emt 0:11:30]} 8. Qg3 {[%emt 0:01:30]} Qxg3 {[%emt 0:04:30]} 9. hxg3 {[%emt 0:00:00]} e5 {[%emt 0:00:00]} 10. Na4 {[%emt 0:03:00]} Be6 {[%emt 0:02:00]} 11. Nb6 {[%emt 0:25:30]} Rd8 {[%emt 0:02:30]} 12. Nc4 {[%emt 0:07:30]} Rd4 {[%emt 0:06:30]} 13. Nd2 {[%emt 0:03:30]} f6 {[%emt 0:13:30]} 14. c3 {[%emt 0:03:30]} Rd7 {[%emt 0:06:30]} 15. Bc4 {[%emt 0:05:30]} Kf7 {[%emt 0:03:30]} 16. g4 {[%emt 0:02:30]} Bc5 {[%emt 0:07:30]} 17. g5 {[%emt 0:01:30]} Ne7 {[%emt 0:00:00]} 18. gxf6 {[%emt 0:03:30]} gxf6 {[%emt 0:01:00]} 19. Bxe6+ {[%emt 0:05:30]} Kxe6 {[%emt 0:00:00]} 20. Nf3 {[%emt 0:04:30]} Nc8 {[%emt 0:03:00]} 21. Ke2 {[%emt 0:17:59]} Nd6 {[%emt 0:09:30]} 22. Rh4 {[%emt 0:00:04]} Rg7 {[%emt 0:02:30]} 23. g3 {[%emt 0:01:13]} h5 {[%emt 0:00:00]} 24. b4 {[%emt 0:01:30]} Bb6 {[%emt 0:04:00]} 25. Be3 {[%emt 0:00:36]} Bxe3 {[%emt 0:00:30]} 26. Kxe3 {[%emt 0:00:30]} f5 {[%emt 0:00:00]} 27. Nd2 {[%emt 0:00:47]} fxe4 {[%emt 0:00:00]} 28. Ke2 {[%emt 0:03:48]} e3 {[%emt 0:00:30]} 29. fxe3 {[%emt 0:02:05]} Rxg3 {[%emt 0:00:30]} 30. Rah1 {[%emt 0:00:28]} Nf5 {[%emt 0:03:30]} 31. Rxh5 {[%emt 0:00:44]} Rxe3+ {[%emt 0:00:30]} 32. Kd1 {[%emt 0:00:39]} Rxh5 {[%emt 0:04:56]} 33. Rxh5 {[%emt 0:00:30]} Rxc3 {[%emt 0:00:00]} 34. Ne4 {[%emt 0:00:00]} Rd3+ {[%emt 0:00:00]} 35. Kc2 {[%emt 0:00:53]} Rd4 {[%emt 0:00:27]} 36. Nc5+ {[%emt 0:00:00]} Kf6 {[%emt 0:00:00]} 37. a3 {[%emt 0:00:09]} b6 {[%emt 0:04:21]} 38. Nxa6 {[%emt 0:00:30]} e4 {[%emt 0:00:00]} 39. b5 {[%emt 0:00:30]} cxb5 {[%emt 0:00:01]} 40. Nb4 {[%emt 0:00:26]} e3 {[%emt 0:07:00]} 41. Nd3 {[%emt 0:00:22]} e2 {[%emt 0:00:58]} 42. Rh1 {[%emt 0:00:30]} Ng3 {[%emt 0:00:53]} 43. Rh6+ {[%emt 0:02:46]} Kf5 {[%emt 0:00:14]} 44. Ne1 {[%emt 0:00:11]} Rd1 {[%emt 0:00:49]} 45. Nf3 {[%emt 0:00:38]} Kf4 {[%emt 0:02:06]} 46. Nh4 {[%emt 0:00:41]} Kg5 {[%emt 0:00:33]} 47. Rh8 {[%emt 0:00:23]} Rc1+ {[%emt 0:00:13]} 48. Kd3 {[%emt 0:00:37]} e1=Q {[%emt 0:01:34]} 49. Nf3+ {[%emt 0:00:07]} Kf4 {[%emt 0:00:21]} 50. Nxe1 {[%emt 0:00:30]} Rxe1 {[%emt 0:00:00]} 51. Rh6 {[%emt 0:00:06]} Re3+ {[%emt 0:02:16]} 52. Kc2 {[%emt 0:00:22]} Rxa3 {[%emt 0:00:36]} 53. Rxb6 {[%emt 0:00:38]} Ne2 {[%emt 0:00:57]} 54. Kb2 {[%emt 0:00:30]} Ra5 {[%emt 0:00:00]} 55. Rb8 {[%emt 0:01:10]} Ke4 {[%emt 0:00:05]} 56. Re8+ {[%emt 0:00:27]} Kd3 {[%emt 0:00:30]} 57. Kb3 {[%emt 0:00:11]} Ra4 {[%emt 0:00:18]} 0-1